[Event "*** Titled Tuesday Blitz"]
[Site "Chess.com"]
[Date "2021.04.20"]
[Round "8"]
[White "Gerodot71"]
[Black "McCarthyStone"]
[Result "1-0"]
[WhiteElo "2588"]
[BlackElo "2386"]
[TimeControl "180+1"]
[EndTime "11:26:54 PDT"]
[Termination "Gerodot71 won by resignation"]

1. d4 {[%clk 0:03:00.9]} 1... d5 {[%clk 0:02:59.8]} 2. c4 {[%clk 0:03:01.5]}
2... Nc6 {[%clk 0:03:00.2]} 3. Nf3 {[%clk 0:02:59.7]} 3... Bg4 {[%clk
0:03:00.4]} 4. cxd5 {[%clk 0:03:00.3]} 4... Bxf3 {[%clk 0:02:59]} 5. dxc6 {[%clk
0:03:00.3]} 5... Bxc6 {[%clk 0:02:59.9]} 6. Nc3 {[%clk 0:03:00.8]} 6... Nf6
{[%clk 0:02:59.7]} 7. f3 {[%clk 0:03:00.5]} 7... e6 {[%clk 0:03:00.3]} 8. e4
{[%clk 0:02:58.3]} 8... Be7 {[%clk 0:02:55.8]} 9. Be2 {[%clk 0:02:52.5]} 9... b6
{[%clk 0:02:56.2]} 10. O-O {[%clk 0:02:51.3]} 10... O-O {[%clk 0:02:56.4]} 11.
Be3 {[%clk 0:02:51.5]} 11... Bb7 {[%clk 0:02:52.8]} 12. Rc1 {[%clk 0:02:50.5]}
12... Nd7 {[%clk 0:02:36.1]} 13. Qd2 {[%clk 0:02:39.6]} 13... c5 {[%clk
0:02:35.1]} 14. d5 {[%clk 0:02:38.8]} 14... exd5 {[%clk 0:02:35.5]} 15. Nxd5
{[%clk 0:02:36.3]} 15... Ne5 {[%clk 0:02:17.7]} 16. Rfd1 {[%clk 0:02:31.6]}
16... Bc6 {[%clk 0:01:55.2]} 17. f4 {[%clk 0:02:18.5]} 17... Bxd5 {[%clk
0:01:50.6]} 18. Qxd5 {[%clk 0:02:17]} 18... Qxd5 {[%clk 0:01:49.5]} 19. Rxd5
{[%clk 0:02:17.9]} 19... Nc6 {[%clk 0:01:49.9]} 20. Rd7 {[%clk 0:02:02.7]} 20...
Rfd8 {[%clk 0:01:48.6]} 21. Rc7 {[%clk 0:01:24.5]} 21... Rac8 {[%clk 0:01:41]}
22. Rxc8 {[%clk 0:01:24.5]} 22... Rxc8 {[%clk 0:01:41.8]} 23. Kf2 {[%clk
0:01:23.6]} 23... Rd8 {[%clk 0:01:39.5]} 24. g3 {[%clk 0:01:14.1]} 24... Kf8
{[%clk 0:01:39.1]} 25. e5 {[%clk 0:01:10.7]} 25... Nd4 {[%clk 0:01:18.7]} 26.
Bf1 {[%clk 0:01:09.8]} 26... Nf5 {[%clk 0:01:18.1]} 27. Bg2 {[%clk 0:01:00.6]}
27... Rd3 {[%clk 0:01:12.8]} 28. Be4 {[%clk 0:00:52.7]} 28... Nxe3 {[%clk
0:01:04.8]} 29. Bxd3 {[%clk 0:00:52.4]} 29... Nd5 {[%clk 0:01:05.7]} 30. a3
{[%clk 0:00:49.8]} 30... g6 {[%clk 0:01:00.2]} 31. Be4 {[%clk 0:00:44]} 31...
Nc7 {[%clk 0:01:00.4]} 32. b4 {[%clk 0:00:43.7]} 32... Nb5 {[%clk 0:00:54.5]}
33. bxc5 {[%clk 0:00:41.5]} 33... Bxc5+ {[%clk 0:00:54.5]} 34. Kf3 {[%clk
0:00:38.3]} 34... Nxa3 {[%clk 0:00:54.7]} 35. Bd3 {[%clk 0:00:36.6]} 35... Ke7
{[%clk 0:00:51.4]} 36. Ke4 {[%clk 0:00:36.5]} 36... a5 {[%clk 0:00:49.2]} 37.
Kd5 {[%clk 0:00:29.9]} 37... Kd7 {[%clk 0:00:47.2]} 38. g4 {[%clk 0:00:23.8]}
38... h5 {[%clk 0:00:45.6]} 39. f5 {[%clk 0:00:22]} 39... hxg4 {[%clk
0:00:44.3]} 40. e6+ {[%clk 0:00:22.3]} 40... fxe6+ {[%clk 0:00:44.4]} 41. fxe6+
{[%clk 0:00:23.2]} 41... Ke7 {[%clk 0:00:45]} 42. Rf1 {[%clk 0:00:22.5]} 42...
Be3 {[%clk 0:00:40.6]} 43. Rf7+ {[%clk 0:00:21.6]} 43... Ke8 {[%clk 0:00:41]}
44. Bxg6 {[%clk 0:00:20.1]} 44... Kd8 {[%clk 0:00:36.7]} 45. e7+ {[%clk
0:00:19.8]} 45... Kd7 {[%clk 0:00:32.8]} 46. Rg7 {[%clk 0:00:19]} 1-0

[Event "*** Titled Tuesday Blitz"]
[Site "Chess.com"]
[Date "2021.04.20"]
[Round "8"]
[White "rasmussvane"]
[Black "exoticprincess"]
[Result "1-0"]
[WhiteElo "2889"]
[BlackElo "2922"]
[TimeControl "180+1"]
[EndTime "11:26:56 PDT"]
[Termination "rasmussvane won by resignation"]

1. Nf3 {[%clk 0:03:00.9]} 1... d5 {[%clk 0:02:59.9]} 2. g3 {[%clk 0:03:01.3]}
2... c6 {[%clk 0:03:00.8]} 3. Bg2 {[%clk 0:03:01.9]} 3... Nf6 {[%clk 0:03:01.7]}
4. O-O {[%clk 0:03:02.5]} 4... Bf5 {[%clk 0:03:01.7]} 5. c4 {[%clk 0:03:02.7]}
5... e6 {[%clk 0:03:02.1]} 6. Qb3 {[%clk 0:03:03.2]} 6... Qc8 {[%clk 0:03:02.6]}
7. d3 {[%clk 0:03:03.5]} 7... Be7 {[%clk 0:03:02.9]} 8. Nc3 {[%clk 0:03:00.8]}
8... O-O {[%clk 0:03:03]} 9. Bf4 {[%clk 0:02:57.5]} 9... Nbd7 {[%clk 0:03:01.6]}
10. cxd5 {[%clk 0:02:57.8]} 10... Nc5 {[%clk 0:02:58.1]} 11. Qc2 {[%clk
0:02:55.4]} 11... exd5 {[%clk 0:02:58.5]} 12. Nd4 {[%clk 0:02:47.7]} 12... Bh3
{[%clk 0:02:57.1]} 13. a3 {[%clk 0:02:43.1]} 13... Re8 {[%clk 0:02:55.9]} 14.
Rae1 {[%clk 0:02:39.5]} 14... Bxg2 {[%clk 0:02:55.9]} 15. Kxg2 {[%clk
0:02:40.4]} 15... h6 {[%clk 0:02:53.9]} 16. e4 {[%clk 0:02:37.2]} 16... dxe4
{[%clk 0:02:54.8]} 17. dxe4 {[%clk 0:02:38.1]} 17... Ne6 {[%clk 0:02:53.9]} 18.
Be3 {[%clk 0:02:29.2]} 18... Ng4 {[%clk 0:02:49]} 19. Nf5 {[%clk 0:02:23.1]}
19... Nxe3+ {[%clk 0:02:47]} 20. Rxe3 {[%clk 0:02:24]} 20... Bf8 {[%clk
0:02:44.8]} 21. Rd1 {[%clk 0:02:15.1]} 21... Qc7 {[%clk 0:02:24.2]} 22. Red3
{[%clk 0:02:11.8]} 22... Rad8 {[%clk 0:02:13.7]} 23. Rxd8 {[%clk 0:01:49.5]}
23... Rxd8 {[%clk 0:02:14.6]} 24. Rxd8 {[%clk 0:01:49.7]} 24... Qxd8 {[%clk
0:02:15.5]} 25. Ne2 {[%clk 0:01:42.7]} 25... a5 {[%clk 0:01:53.4]} 26. Ne3
{[%clk 0:01:37.5]} 26... Nc5 {[%clk 0:01:50.6]} 27. Nc4 {[%clk 0:01:24.1]} 27...
a4 {[%clk 0:01:46.3]} 28. Nf4 {[%clk 0:00:53.7]} 28... Qd4 {[%clk 0:01:38.6]}
29. f3 {[%clk 0:00:49.9]} 29... Be7 {[%clk 0:01:22.7]} 30. Ne2 {[%clk
0:00:43.4]} 30... Qd3 {[%clk 0:01:14.4]} 31. Qxd3 {[%clk 0:00:41.4]} 31... Nxd3
{[%clk 0:01:15.3]} 32. Nf4 {[%clk 0:00:40.1]} 32... Nxb2 {[%clk 0:01:05.2]} 33.
Nxb2 {[%clk 0:00:39.1]} 33... Bxa3 {[%clk 0:01:05.6]} 34. Nxa4 {[%clk
0:00:38.5]} 34... b5 {[%clk 0:00:32.8]} 35. Nc3 {[%clk 0:00:33.7]} 35... b4
{[%clk 0:00:33.1]} 36. Na4 {[%clk 0:00:32.8]} 36... b3 {[%clk 0:00:32.3]} 37.
Nd3 {[%clk 0:00:31.5]} 37... c5 {[%clk 0:00:30.8]} 38. Ndb2 {[%clk 0:00:29.5]}
38... Bxb2 {[%clk 0:00:22.1]} 39. Nxb2 {[%clk 0:00:30.4]} 39... f5 {[%clk
0:00:19.2]} 40. exf5 {[%clk 0:00:23.9]} 40... Kf7 {[%clk 0:00:19.3]} 41. g4
{[%clk 0:00:20.4]} 41... Kf6 {[%clk 0:00:19.4]} 42. f4 {[%clk 0:00:20.4]} 1-0

[Event "*** Titled Tuesday Blitz"]
[Site "Chess.com"]
[Date "2021.04.20"]
[Round "8"]
[White "dmitrijiIM"]
[Black "yuki_chess123"]
[Result "1-0"]
[WhiteElo "2550"]
[BlackElo "2266"]
[TimeControl "180+1"]
[EndTime "11:26:58 PDT"]
[Termination "dmitrijiIM won on time"]

1. e4 {[%clk 0:03:00.9]} 1... g6 {[%clk 0:02:54.2]} 2. d4 {[%clk 0:03:00.9]}
2... Bg7 {[%clk 0:02:52.9]} 3. Nc3 {[%clk 0:03:01.3]} 3... c6 {[%clk 0:02:52.8]}
4. Nf3 {[%clk 0:03:00.8]} 4... d5 {[%clk 0:02:53]} 5. h3 {[%clk 0:03:01.4]} 5...
f6 {[%clk 0:02:53.2]} 6. Bd3 {[%clk 0:02:55]} 6... Nh6 {[%clk 0:02:53.1]} 7. Qe2
{[%clk 0:02:52.7]} 7... Nf7 {[%clk 0:02:51.2]} 8. O-O {[%clk 0:02:30.8]} 8...
O-O {[%clk 0:02:50.3]} 9. Rd1 {[%clk 0:02:31.5]} 9... e6 {[%clk 0:02:43.9]} 10.
a4 {[%clk 0:02:24.4]} 10... Nd7 {[%clk 0:02:42.9]} 11. a5 {[%clk 0:02:23.3]}
11... f5 {[%clk 0:02:34.1]} 12. e5 {[%clk 0:02:18.6]} 12... c5 {[%clk
0:02:13.2]} 13. Nxd5 {[%clk 0:02:07.5]} 13... cxd4 {[%clk 0:02:00.3]} 14. Nf4
{[%clk 0:01:37.9]} 14... Ndxe5 {[%clk 0:01:57.7]} 15. Nxe5 {[%clk 0:01:37.5]}
15... Nxe5 {[%clk 0:01:55.3]} 16. b3 {[%clk 0:01:33.4]} 16... Re8 {[%clk
0:01:45.9]} 17. Bb2 {[%clk 0:01:32.1]} 17... Nxd3 {[%clk 0:01:43.5]} 18. Nxd3
{[%clk 0:01:29]} 18... e5 {[%clk 0:01:40.1]} 19. Nc5 {[%clk 0:01:29.5]} 19...
Qd5 {[%clk 0:01:29.5]} 20. b4 {[%clk 0:01:23.7]} 20... Rb8 {[%clk 0:01:06.4]}
21. c3 {[%clk 0:00:43.8]} 21... b6 {[%clk 0:00:56.7]} 22. axb6 {[%clk
0:00:44.1]} 22... axb6 {[%clk 0:00:56.6]} 23. Na6 {[%clk 0:00:44.2]} 23... Bb7
{[%clk 0:00:44.8]} 24. f3 {[%clk 0:00:38.8]} 24... Rbc8 {[%clk 0:00:39.4]} 25.
b5 {[%clk 0:00:20.3]} 25... e4 {[%clk 0:00:14.5]} 26. fxe4 {[%clk 0:00:17.9]}
26... Rxe4 {[%clk 0:00:13.6]} 27. Qf3 {[%clk 0:00:18.5]} 27... Qxb5 {[%clk
0:00:11.1]} 28. Qf1 {[%clk 0:00:14.1]} 28... Bxa6 {[%clk 0:00:08.8]} 29. Rxa6
{[%clk 0:00:13]} 29... Qxb2 {[%clk 0:00:08]} 30. Ra7 {[%clk 0:00:09.4]} 30...
Qxc3 {[%clk 0:00:05.1]} 31. Qb5 {[%clk 0:00:06.2]} 31... Qc6 {[%clk 0:00:03.5]}
32. Qb3+ {[%clk 0:00:05.6]} 32... Qc4 {[%clk 0:00:02.6]} 33. Qa3 {[%clk
0:00:05.1]} 1-0

[Event "*** Titled Tuesday Blitz"]
[Site "Chess.com"]
[Date "2021.04.20"]
[Round "8"]
[White "elcandado"]
[Black "Das_Virus_2020"]
[Result "1-0"]
[WhiteElo "2642"]
[BlackElo "2478"]
[TimeControl "180+1"]
[EndTime "11:27:00 PDT"]
[Termination "elcandado won on time"]

1. d4 {[%clk 0:03:00.9]} 1... Nf6 {[%clk 0:02:59.3]} 2. Bf4 {[%clk 0:03:01.3]}
2... c5 {[%clk 0:02:59.3]} 3. c3 {[%clk 0:03:01]} 3... Qb6 {[%clk 0:02:56]} 4.
Nd2 {[%clk 0:03:00.3]} 4... d6 {[%clk 0:02:55.8]} 5. Nc4 {[%clk 0:02:45.1]} 5...
Qc7 {[%clk 0:02:54.5]} 6. a4 {[%clk 0:02:35.1]} 6... g6 {[%clk 0:02:52.9]} 7. e3
{[%clk 0:02:34.6]} 7... Bg7 {[%clk 0:02:48.9]} 8. h3 {[%clk 0:02:34.5]} 8... O-O
{[%clk 0:02:47.6]} 9. Nf3 {[%clk 0:02:34.2]} 9... Re8 {[%clk 0:02:43.8]} 10. Be2
{[%clk 0:02:32.5]} 10... cxd4 {[%clk 0:02:40.2]} 11. exd4 {[%clk 0:02:23.9]}
11... Nc6 {[%clk 0:02:39.6]} 12. O-O {[%clk 0:02:21.7]} 12... e5 {[%clk
0:02:38.4]} 13. Bh2 {[%clk 0:02:18.6]} 13... Bf5 {[%clk 0:02:05.4]} 14. dxe5
{[%clk 0:02:10.5]} 14... dxe5 {[%clk 0:01:58.3]} 15. Qd6 {[%clk 0:02:10.5]}
15... Qxd6 {[%clk 0:01:15.5]} 16. Nxd6 {[%clk 0:02:11.4]} 16... Re7 {[%clk
0:01:15.8]} 17. Nxf5 {[%clk 0:01:58.3]} 17... gxf5 {[%clk 0:01:16.7]} 18. Rfd1
{[%clk 0:01:58.1]} 18... f4 {[%clk 0:01:05.1]} 19. Nd2 {[%clk 0:01:46.5]} 19...
Rd8 {[%clk 0:00:58.8]} 20. Nc4 {[%clk 0:01:29.7]} 20... Red7 {[%clk 0:00:54.5]}
21. Rxd7 {[%clk 0:01:27.2]} 21... Rxd7 {[%clk 0:00:55.4]} 22. Rd1 {[%clk
0:01:26.9]} 22... Rxd1+ {[%clk 0:00:53.8]} 23. Bxd1 {[%clk 0:01:27.8]} 23... Nd5
{[%clk 0:00:47.7]} 24. Bf3 {[%clk 0:01:23.5]} 24... Nde7 {[%clk 0:00:44.3]} 25.
Nd6 {[%clk 0:01:08.9]} 25... b6 {[%clk 0:00:42.3]} 26. Be4 {[%clk 0:01:08.7]}
26... Bf8 {[%clk 0:00:22.4]} 27. Kf1 {[%clk 0:01:04.7]} 27... Na5 {[%clk
0:00:18.3]} 28. f3 {[%clk 0:00:59.8]} 28... Ng6 {[%clk 0:00:16.1]} 29. Nc8
{[%clk 0:00:58]} 29... Nc4 {[%clk 0:00:13.8]} 30. b4 {[%clk 0:00:53.8]} 30...
Nd2+ {[%clk 0:00:13.5]} 31. Ke2 {[%clk 0:00:53.4]} 31... Nxe4 {[%clk 0:00:14.4]}
32. fxe4 {[%clk 0:00:53.9]} 32... a5 {[%clk 0:00:13.7]} 33. Bg1 {[%clk
0:00:48.5]} 33... axb4 {[%clk 0:00:13]} 34. cxb4 {[%clk 0:00:49.4]} 34... Bxb4
{[%clk 0:00:12.9]} 35. Bxb6 {[%clk 0:00:49.9]} 35... Nh4 {[%clk 0:00:13.3]} 36.
Kf2 {[%clk 0:00:47.7]} 36... f5 {[%clk 0:00:12.7]} 37. exf5 {[%clk 0:00:46]}
37... e4 {[%clk 0:00:13]} 38. a5 {[%clk 0:00:45.4]} 38... e3+ {[%clk 0:00:12.3]}
39. Kf1 {[%clk 0:00:44.9]} 39... Nxg2 {[%clk 0:00:07]} 40. a6 {[%clk 0:00:44.3]}
40... f3 {[%clk 0:00:07.3]} 41. Bxe3 {[%clk 0:00:41.6]} 41... Nxe3+ {[%clk
0:00:06.9]} 42. Kf2 {[%clk 0:00:41.8]} 42... Nxf5 {[%clk 0:00:05.4]} 43. Kxf3
{[%clk 0:00:40.5]} 43... Bc5 {[%clk 0:00:05.1]} 44. Ke4 {[%clk 0:00:39.9]} 44...
Nh6 {[%clk 0:00:03.4]} 45. Kd5 {[%clk 0:00:39.9]} 45... Bf2 {[%clk 0:00:03.1]}
46. Kc6 {[%clk 0:00:39.3]} 46... Nf7 {[%clk 0:00:02.8]} 47. Nb6 {[%clk
0:00:36.7]} 47... Ne5+ {[%clk 0:00:02.7]} 48. Kb7 {[%clk 0:00:36.4]} 1-0

[Event "*** Titled Tuesday Blitz"]
[Site "Chess.com"]
[Date "2021.04.20"]
[Round "8"]
[White "HrvojeZagreb"]
[Black "4empechement"]
[Result "0-1"]
[WhiteElo "2279"]
[BlackElo "2461"]
[TimeControl "180+1"]
[EndTime "11:27:00 PDT"]
[Termination "4empechement won on time"]

1. d4 {[%clk 0:03:00.9]} 1... Nf6 {[%clk 0:02:59.3]} 2. Bf4 {[%clk 0:02:59.9]}
2... d5 {[%clk 0:02:58.7]} 3. e3 {[%clk 0:03:00.1]} 3... c5 {[%clk 0:02:37.5]}
4. Nc3 {[%clk 0:02:59.5]} 4... cxd4 {[%clk 0:02:11.7]} 5. exd4 {[%clk
0:02:59.1]} 5... a6 {[%clk 0:02:08.2]} 6. Bd3 {[%clk 0:02:58.6]} 6... Nc6 {[%clk
0:02:02.9]} 7. Nce2 {[%clk 0:02:58.5]} 7... g6 {[%clk 0:02:00.9]} 8. c3 {[%clk
0:02:53.5]} 8... Bg7 {[%clk 0:02:00.6]} 9. h4 {[%clk 0:02:49.9]} 9... Bg4 {[%clk
0:01:56.1]} 10. f3 {[%clk 0:02:49]} 10... Be6 {[%clk 0:01:51.4]} 11. h5 {[%clk
0:02:30.3]} 11... Nxh5 {[%clk 0:01:48.1]} 12. Rxh5 {[%clk 0:02:30.2]} 12... gxh5
{[%clk 0:01:47]} 13. Ng3 {[%clk 0:02:30.3]} 13... h4 {[%clk 0:01:45]} 14. Nh5
{[%clk 0:02:27.3]} 14... Bf8 {[%clk 0:01:39.7]} 15. Qe2 {[%clk 0:02:19.7]} 15...
Qd7 {[%clk 0:01:38.3]} 16. Nh3 {[%clk 0:02:14.8]} 16... h6 {[%clk 0:01:32]} 17.
Bh2 {[%clk 0:02:03.8]} 17... O-O-O {[%clk 0:01:27.9]} 18. N3f4 {[%clk
0:01:51.2]} 18... Bf5 {[%clk 0:01:24.7]} 19. O-O-O {[%clk 0:01:36.5]} 19... Bxd3
{[%clk 0:01:22.6]} 20. Nxd3 {[%clk 0:01:37.4]} 20... f6 {[%clk 0:01:13.2]} 21.
Nc5 {[%clk 0:01:35.3]} 21... Qf5 {[%clk 0:01:12.5]} 22. g4 {[%clk 0:01:22.8]}
22... hxg3 {[%clk 0:01:00.6]} 23. Nxg3 {[%clk 0:01:22.2]} 23... Qh3 {[%clk
0:00:54.7]} 24. Nxa6 {[%clk 0:01:12.8]} 24... e5 {[%clk 0:00:47.8]} 25. dxe5
{[%clk 0:00:37.2]} 25... fxe5 {[%clk 0:00:47.1]} 26. Nf1 {[%clk 0:00:28.9]}
26... h5 {[%clk 0:00:35.6]} 27. Nb4 {[%clk 0:00:17.7]} 27... Bxb4 {[%clk
0:00:34.6]} 28. cxb4 {[%clk 0:00:18.6]} 28... Rhe8 {[%clk 0:00:31]} 29. b5
{[%clk 0:00:17.8]} 29... Nd4 {[%clk 0:00:25.8]} 30. Rxd4 {[%clk 0:00:14.1]}
30... exd4 {[%clk 0:00:25.5]} 31. Qc2+ {[%clk 0:00:13.8]} 31... Kd7 {[%clk
0:00:25.8]} 32. Qc7+ {[%clk 0:00:12.3]} 32... Ke6 {[%clk 0:00:25.9]} 33. Qe5+
{[%clk 0:00:09.6]} 33... Kf7 {[%clk 0:00:25.7]} 34. Qf4+ {[%clk 0:00:06.4]}
34... Kg6 {[%clk 0:00:25.2]} 35. b3 {[%clk 0:00:01.6]} 35... Qxf1+ {[%clk
0:00:24.7]} 36. Kb2 {[%clk 0:00:02]} 36... Qe2+ {[%clk 0:00:23.5]} 37. Ka3
{[%clk 0:00:02.2]} 37... Qe7+ {[%clk 0:00:23.2]} 38. b4 {[%clk 0:00:01.8]} 38...
Qe3+ {[%clk 0:00:22.5]} 0-1

[Event "*** Titled Tuesday Blitz"]
[Site "Chess.com"]
[Date "2021.04.20"]
[Round "8"]
[White "vova-79"]
[Black "stepakyedael"]
[Result "1-0"]
[WhiteElo "2531"]
[BlackElo "2231"]
[TimeControl "180+1"]
[EndTime "11:27:00 PDT"]
[Termination "vova-79 won on time"]

1. d4 {[%clk 0:03:00.9]} 1... Nf6 {[%clk 0:02:52.1]} 2. c4 {[%clk 0:03:00.2]}
2... g6 {[%clk 0:02:51.9]} 3. Nc3 {[%clk 0:02:59.4]} 3... Bg7 {[%clk 0:02:52.1]}
4. Nf3 {[%clk 0:02:59.2]} 4... d6 {[%clk 0:02:52.2]} 5. g3 {[%clk 0:02:59.1]}
5... O-O {[%clk 0:02:52.8]} 6. Bg2 {[%clk 0:02:59.1]} 6... Nc6 {[%clk
0:02:53.3]} 7. O-O {[%clk 0:02:59]} 7... Bf5 {[%clk 0:02:53.3]} 8. d5 {[%clk
0:02:58.5]} 8... Na5 {[%clk 0:02:51.7]} 9. Nd4 {[%clk 0:02:57.4]} 9... Bd7
{[%clk 0:02:50.7]} 10. b3 {[%clk 0:02:56.5]} 10... c5 {[%clk 0:02:46.6]} 11.
dxc6 {[%clk 0:02:55.8]} 11... Nxc6 {[%clk 0:02:38.9]} 12. Bb2 {[%clk 0:02:55.4]}
12... a6 {[%clk 0:02:34.5]} 13. Qd2 {[%clk 0:02:50]} 13... Rc8 {[%clk
0:02:25.8]} 14. Rfd1 {[%clk 0:02:48.6]} 14... Nxd4 {[%clk 0:02:17.1]} 15. Qxd4
{[%clk 0:02:47.9]} 15... Ne8 {[%clk 0:02:09.3]} 16. Qd2 {[%clk 0:02:40.6]} 16...
Bc6 {[%clk 0:02:05.7]} 17. Nd5 {[%clk 0:02:37.5]} 17... Bxd5 {[%clk 0:02:01.9]}
18. Bxd5 {[%clk 0:02:35.1]} 18... Qc7 {[%clk 0:01:57.2]} 19. Bg2 {[%clk
0:02:26.7]} 19... Nf6 {[%clk 0:01:52.7]} 20. Rac1 {[%clk 0:02:22.1]} 20... Rfd8
{[%clk 0:01:49.7]} 21. e4 {[%clk 0:02:20.8]} 21... Nd7 {[%clk 0:01:42.5]} 22.
Ba3 {[%clk 0:02:18.2]} 22... Nc5 {[%clk 0:01:35.7]} 23. Qe1 {[%clk 0:02:17.4]}
23... b6 {[%clk 0:01:29.1]} 24. Bh3 {[%clk 0:02:13.3]} 24... Rb8 {[%clk
0:01:24.7]} 25. Rc2 {[%clk 0:02:12.7]} 25... a5 {[%clk 0:01:22.5]} 26. Re2
{[%clk 0:02:11.5]} 26... Ne6 {[%clk 0:01:11.1]} 27. Bxe6 {[%clk 0:02:07.5]}
27... fxe6 {[%clk 0:01:10.7]} 28. Qf1 {[%clk 0:01:56.6]} 28... Qc8 {[%clk
0:00:59.1]} 29. Bc1 {[%clk 0:01:46.1]} 29... Rf8 {[%clk 0:00:57.7]} 30. Bg5
{[%clk 0:01:44.7]} 30... Rf7 {[%clk 0:00:56.6]} 31. Qh3 {[%clk 0:01:37.1]} 31...
e5 {[%clk 0:00:54.9]} 32. Qxc8+ {[%clk 0:01:33.7]} 32... Rxc8 {[%clk 0:00:54.9]}
33. Be3 {[%clk 0:01:34.6]} 33... Rb8 {[%clk 0:00:52.9]} 34. Rd5 {[%clk
0:01:34.6]} 34... Rff8 {[%clk 0:00:34.2]} 35. Rb5 {[%clk 0:01:33.2]} 35... Ra8
{[%clk 0:00:31.8]} 36. Rxb6 {[%clk 0:01:27.4]} 36... Rfc8 {[%clk 0:00:26]} 37.
Rc2 {[%clk 0:01:25.8]} 37... Bf6 {[%clk 0:00:22.8]} 38. Kf1 {[%clk 0:01:23.8]}
38... Kf7 {[%clk 0:00:23]} 39. Ke2 {[%clk 0:01:21.6]} 39... Ke8 {[%clk
0:00:21.7]} 40. Kd3 {[%clk 0:01:20.7]} 40... Kd7 {[%clk 0:00:20.9]} 41. c5
{[%clk 0:01:20.3]} 41... dxc5 {[%clk 0:00:19.7]} 42. Rxc5 {[%clk 0:01:19.2]}
42... Rxc5 {[%clk 0:00:19.5]} 43. Bxc5 {[%clk 0:01:18.4]} 43... Rc8 {[%clk
0:00:17.8]} 44. Be3 {[%clk 0:01:17.6]} 44... e6 {[%clk 0:00:15.5]} 45. Ra6
{[%clk 0:01:16.5]} 45... Bd8 {[%clk 0:00:15.4]} 46. Ra7+ {[%clk 0:01:14.7]}
46... Rc7 {[%clk 0:00:06.8]} 47. Rxc7+ {[%clk 0:01:08.1]} 47... Bxc7 {[%clk
0:00:06.4]} 48. Kc4 {[%clk 0:01:08.2]} 48... Kc6 {[%clk 0:00:07]} 49. Bd2 {[%clk
0:01:07.2]} 49... Bb6 {[%clk 0:00:06.6]} 50. f3 {[%clk 0:01:06.6]} 50... h5
{[%clk 0:00:05.1]} 51. g4 {[%clk 0:01:03.8]} 51... hxg4 {[%clk 0:00:04.2]} 52.
fxg4 {[%clk 0:01:03.5]} 52... Bd8 {[%clk 0:00:04.2]} 53. Bc3 {[%clk 0:01:00.3]}
53... Bc7 {[%clk 0:00:01.2]} 54. h4 {[%clk 0:00:59.8]} 1-0

[Event "*** Titled Tuesday Blitz"]
[Site "Chess.com"]
[Date "2021.04.20"]
[Round "8"]
[White "I_Enchev"]
[Black "Manukyan_Artak"]
[Result "1/2-1/2"]
[WhiteElo "2618"]
[BlackElo "2431"]
[TimeControl "180+1"]
[EndTime "11:27:01 PDT"]
[Termination "Game drawn by repetition"]

1. d4 {[%clk 0:03:00.9]} 1... Nf6 {[%clk 0:02:59.4]} 2. c3 {[%clk 0:03:01]} 2...
d5 {[%clk 0:02:58.9]} 3. Bf4 {[%clk 0:02:59.2]} 3... Bf5 {[%clk 0:02:57.4]} 4.
e3 {[%clk 0:02:57.5]} 4... e6 {[%clk 0:02:54.4]} 5. Nd2 {[%clk 0:02:57.5]} 5...
Nbd7 {[%clk 0:02:53]} 6. Be2 {[%clk 0:02:56.2]} 6... c5 {[%clk 0:02:49.8]} 7. g4
{[%clk 0:02:56.1]} 7... Bg6 {[%clk 0:02:48.9]} 8. h4 {[%clk 0:02:56.3]} 8... h5
{[%clk 0:02:46.6]} 9. g5 {[%clk 0:02:55.7]} 9... Ng8 {[%clk 0:02:45.1]} 10. Ngf3
{[%clk 0:02:52.8]} 10... Ne7 {[%clk 0:02:41.3]} 11. Ne5 {[%clk 0:02:52.3]} 11...
Nxe5 {[%clk 0:02:40.8]} 12. Bxe5 {[%clk 0:02:53.2]} 12... Nc6 {[%clk 0:02:40.5]}
13. Bg3 {[%clk 0:02:49.5]} 13... Qb6 {[%clk 0:02:39.9]} 14. Qb3 {[%clk
0:02:48.6]} 14... c4 {[%clk 0:02:37.6]} 15. Qxb6 {[%clk 0:02:46.5]} 15... axb6
{[%clk 0:02:38.5]} 16. a3 {[%clk 0:02:46.3]} 16... b5 {[%clk 0:02:37.8]} 17. O-O
{[%clk 0:02:42.6]} 17... Bc2 {[%clk 0:02:25.7]} 18. Rfc1 {[%clk 0:02:40.8]}
18... Ba4 {[%clk 0:02:25.3]} 19. f3 {[%clk 0:02:38.7]} 19... Na5 {[%clk
0:02:23.7]} 20. e4 {[%clk 0:02:37.5]} 20... Kd7 {[%clk 0:02:13.8]} 21. Rf1
{[%clk 0:02:35.9]} 21... Nb3 {[%clk 0:02:02.6]} 22. Nxb3 {[%clk 0:02:34.5]}
22... Bxb3 {[%clk 0:02:02.8]} 23. Rae1 {[%clk 0:02:31.7]} 23... Bc2 {[%clk
0:01:28.9]} 24. Rc1 {[%clk 0:02:25.3]} 24... Bb3 {[%clk 0:01:25.5]} 25. exd5
{[%clk 0:02:25.1]} 25... exd5 {[%clk 0:01:25.1]} 26. Be5 {[%clk 0:02:25.5]}
26... Re8 {[%clk 0:01:15.4]} 27. Rfe1 {[%clk 0:02:18.3]} 27... Bd6 {[%clk
0:00:58.9]} 28. f4 {[%clk 0:02:15]} 28... f6 {[%clk 0:00:54.8]} 29. Bxd6 {[%clk
0:02:10.9]} 29... Kxd6 {[%clk 0:00:54.5]} 30. Bf3 {[%clk 0:02:07.2]} 30... fxg5
{[%clk 0:00:44.1]} 31. fxg5 {[%clk 0:02:04.3]} 31... g6 {[%clk 0:00:43.7]} 32.
Kf2 {[%clk 0:01:55.9]} 32... Rhf8 {[%clk 0:00:42.8]} 33. Rxe8 {[%clk 0:01:44.6]}
33... Rxe8 {[%clk 0:00:43.7]} 34. Re1 {[%clk 0:01:42.7]} 34... Rxe1 {[%clk
0:00:39.7]} 35. Kxe1 {[%clk 0:01:43.6]} 35... Bc2 {[%clk 0:00:40.2]} 36. Kd2
{[%clk 0:01:42.7]} 36... Bf5 {[%clk 0:00:39.6]} 37. Ke3 {[%clk 0:01:42.4]} 37...
Bc2 {[%clk 0:00:39.5]} 38. Be2 {[%clk 0:01:40.3]} 38... Bf5 {[%clk 0:00:39]} 39.
Bd1 {[%clk 0:01:40.2]} 39... Ke6 {[%clk 0:00:30.6]} 40. a4 {[%clk 0:01:36.1]}
40... bxa4 {[%clk 0:00:30]} 41. Bxa4 {[%clk 0:01:37]} 41... Kd6 {[%clk
0:00:29.5]} 42. Kf4 {[%clk 0:01:37.4]} 42... Bd3 {[%clk 0:00:26.9]} 43. b4
{[%clk 0:01:28.6]} 43... cxb3 {[%clk 0:00:26.5]} 44. Bxb3 {[%clk 0:01:28.1]}
44... b6 {[%clk 0:00:21.8]} 45. Ba4 {[%clk 0:01:27.8]} 45... Bb1 {[%clk
0:00:20.9]} 46. Be8 {[%clk 0:01:26.6]} 46... Be4 {[%clk 0:00:20]} 47. c4 {[%clk
0:01:24.2]} 47... Bd3 {[%clk 0:00:20.1]} 48. c5+ {[%clk 0:01:17.5]} 48... bxc5
{[%clk 0:00:20]} 49. dxc5+ {[%clk 0:01:18.4]} 49... Kxc5 {[%clk 0:00:20.9]} 50.
Ke5 {[%clk 0:01:19]} 50... d4 {[%clk 0:00:20.4]} 51. Kf6 {[%clk 0:01:07.2]}
51... Bf5 {[%clk 0:00:20.4]} 52. Bxg6 {[%clk 0:01:07.9]} 52... Bxg6 {[%clk
0:00:20.1]} 53. Kxg6 {[%clk 0:01:08.8]} 53... d3 {[%clk 0:00:21]} 54. Kh7 {[%clk
0:01:09.1]} 54... d2 {[%clk 0:00:21.9]} 55. g6 {[%clk 0:01:09.7]} 55... d1=Q
{[%clk 0:00:22.5]} 56. g7 {[%clk 0:01:10.3]} 56... Qd3+ {[%clk 0:00:18.3]} 57.
Kh8 {[%clk 0:01:08.1]} 57... Qd4 {[%clk 0:00:18.4]} 58. Kh7 {[%clk 0:01:07.8]}
58... Qe4+ {[%clk 0:00:18.2]} 59. Kh8 {[%clk 0:01:07.9]} 59... Qe5 {[%clk
0:00:15.1]} 60. Kh7 {[%clk 0:01:07.7]} 60... Qe7 {[%clk 0:00:14]} 61. Kh8 {[%clk
0:01:07.3]} 61... Qf6 {[%clk 0:00:14.2]} 62. Kh7 {[%clk 0:01:07.2]} 62... Qe7
{[%clk 0:00:14]} 63. Kh8 {[%clk 0:01:07.3]} 63... Qf6 {[%clk 0:00:13.6]} 64. Kh7
{[%clk 0:01:07.5]} 64... Qe7 {[%clk 0:00:11.3]} 1/2-1/2